fUST/lending_fUST_20250609
["ID","MTS","AMOUNT","RATE_DAILY","PERIOD"]
[365038940,1749420647057,-311.5050251,0.00021233,2]
[365038942,1749420647067,-306.0,0.00021233,2]
[365038944,1749420647077,-630.0,0.00021243,2]
[365038946,1749420647087,-500.0,0.00021247,2]
[365038948,1749420647097,-502.14852776,0.00021247,2]
[365038950,1749420647108,-3156.86977727,0.0002125,2]
[365038952,1749420647118,-630.0,0.0002127,2]
[365038954,1749420647129,-4145.0600695,0.00021279,5]
[365038956,1749420647138,-500.0,0.00021288,2]
[365038958,1749420647148,-500.0,0.00021288,2]
[365038961,1749420647158,-501.89640537,0.00021288,2]
[365038963,1749420647168,-500.0,0.00021288,2]
[365038965,1749420647178,-500.0,0.00021288,2]
[365038967,1749420647188,-500.0,0.00021288,2]
[365038969,1749420647198,-500.0,0.00021288,2]
[365038971,1749420647208,-630.0,0.00021297,2]
[365038973,1749420647218,-630.0,0.00021325,2]
[365038975,1749420647229,-151.0,0.0002135,2]
[365038977,1749420647239,-151.0,0.0002135,2]
[365038979,1749420647249,-278.198717,0.0002135,2]
[365038981,1749420647258,-151.0,0.0002135,2]
[365038983,1749420647267,-247.8257,0.0002135,2]
[365038985,1749420647277,-270.713766,0.0002135,2]
[365038987,1749420647286,-151.0,0.0002135,2]
[365038989,1749420647296,-151.0,0.0002135,2]
[365038991,1749420647305,-151.0,0.0002135,2]
[365038993,1749420647315,-207.4,0.0002135,2]
[365038995,1749420647325,-151.0,0.0002135,2]
[365038997,1749420647334,-151.0,0.0002135,2]
[365039000,1749420647344,-151.0,0.0002135,2]
[365039002,1749420647354,-1688.0,0.0002135,2]
[365039004,1749420647363,-800.0,0.0002135,2]
[365039006,1749420647373,-500.0,0.0002135,2]
[365039008,1749420647383,-800.0,0.0002135,2]
[365039010,1749420647393,-151.0,0.0002135,2]
[365039012,1749420647403,-500.0,0.0002135,2]
[365039014,1749420647412,-800.0,0.0002135,2]
[365039016,1749420647422,-151.0,0.0002135,2]
[365039018,1749420647432,-800.0,0.0002135,2]
[365039020,1749420647443,-226.76390347,0.0002135,2]
[365039022,1749420647455,-500.0,0.0002135,2]
[365039024,1749420647465,-800.0,0.0002135,2]
[365039026,1749420647475,-5000.0,0.0002135,2]
[365039028,1749420647484,-500.0,0.0002135,2]
[365039042,1749420647630,-800.0,0.0002135,2]
[365039044,1749420647641,-500.0,0.0002135,2]
[365039046,1749420647650,-800.0,0.0002135,2]
[365039048,1749420647659,-500.0,0.0002135,2]
[365039050,1749420647670,-800.0,0.0002135,2]
[365039052,1749420647680,-500.0,0.0002135,2]
[365039055,1749420647689,-800.0,0.0002135,2]
[365039057,1749420647699,-500.0,0.0002135,2]
[365039059,1749420647708,-500.0,0.0002135,2]
[365039060,1749420647717,-300.0,0.0002135,2]
[365039062,1749420647726,-500.0,0.0002135,2]
[365039064,1749420647736,-500.0,0.0002135,2]
[365039067,1749420647746,-500.0,0.0002135,2]
[365039068,1749420647756,-500.0,0.0002135,2]
[365039069,1749420647765,-500.0,0.0002135,2]
[365039070,1749420647774,-500.0,0.0002135,2]
[365039071,1749420647784,-300.0,0.0002135,2]
[365039072,1749420647793,-300.0,0.0002135,2]
[365039073,1749420647803,-300.0,0.0002135,2]
[365039074,1749420647813,-300.0,0.0002135,2]
[365039075,1749420647822,-204.71631625,0.0002135,2]
[365039076,1749420647832,-630.0,0.00021352,2]
[365039077,1749420647841,-1453.4,0.00021362,2]
[365039078,1749420647850,-440.0,0.00021369,2]
[365039079,1749420647859,-350.0,0.00021369,2]
[365039080,1749420647869,-440.0,0.00021369,2]
[365039081,1749420647878,-1467.97,0.00021369,2]
[365039082,1749420647887,-1143.64,0.00021369,2]
[365039083,1749420647896,-440.0,0.00021369,2]
[365039084,1749420647906,-440.0,0.00021369,2]
[365039085,1749420647916,-440.0,0.00021369,2]
[365039086,1749420647925,-555.22,0.00021369,2]
[365039087,1749420647936,-440.0,0.00021369,2]
[365039088,1749420647946,-440.0,0.00021369,2]
[365039089,1749420647956,-1415.17,0.00021369,2]
[365039091,1749420647967,-440.0,0.00021369,2]
[365039093,1749420647977,-440.0,0.00021369,2]
[365039096,1749420647987,-485.45,0.00021369,2]
[365039098,1749420647997,-440.0,0.00021369,2]
[365039100,1749420648008,-2568.46,0.00021369,2]
[365039102,1749420648017,-1143.02,0.00021369,2]
[365039104,1749420648027,-440.0,0.00021369,2]
[365039106,1749420648037,-1508.21,0.00021369,2]
[365039108,1749420648047,-440.0,0.00021369,2]
[365039110,1749420648056,-440.0,0.00021369,2]
[365039112,1749420648066,-440.0,0.00021369,2]
[365039114,1749420648075,-502.97,0.00021369,2]
[365039116,1749420648085,-1346.99,0.00021369,2]
[365039118,1749420648094,-440.0,0.00021369,2]
[365039120,1749420648104,-440.0,0.00021369,2]
[365039122,1749420648114,-1720.85,0.00021369,2]
[365039124,1749420648124,-2696.79,0.00021369,2]
[365039126,1749420648134,-1719.84,0.00021369,2]
[365039128,1749420648143,-440.0,0.00021369,2]
[365039130,1749420648153,-440.0,0.00021369,2]
[365039132,1749420648162,-440.0,0.00021369,2]
[365039134,1749420648172,-2364.37,0.00021369,2]
[365039136,1749420648182,-562.52,0.00021369,2]
[365039138,1749420648191,-1138.16,0.00021369,2]
[365039140,1749420648201,-2603.17,0.00021369,2]
[365039142,1749420648211,-2952.52,0.00021369,2]
[365039144,1749420648221,-440.0,0.00021369,2]
[365039146,1749420648231,-769.0,0.00021369,2]
[365039148,1749420648242,-440.0,0.00021369,2]
[365039150,1749420648252,-500.0,0.00021373,2]
[365039152,1749420648261,-48102.66,0.000214,2]
[365039154,1749420648271,-151.0,0.000214,2]
[365039156,1749420648281,-283.888994,0.000214,2]
[365039158,1749420648291,-151.0,0.000214,2]
[365039160,1749420648300,-634.864202,0.000214,2]
[365039162,1749420648311,-634.864202,0.000214,2]
[365039164,1749420648321,-151.0,0.000214,2]
[365039166,1749420648331,-151.0,0.000214,2]
[365039168,1749420648341,-211.191907,0.000214,2]
[365039170,1749420648351,-151.0,0.000214,2]
[365039172,1749420648361,-220.05910324,0.00021405,2]
[365039175,1749420648372,-694.76318022,0.00021421,2]
[365039177,1749420648382,-1200.0,0.00021421,2]
[365039178,1749420648391,-1000.0,0.00021421,2]
[365039180,1749420648402,-500.0,0.00021421,2]
[365039182,1749420648411,-1000.0,0.00021421,2]
[365039184,1749420648421,-1000.0,0.00021421,2]
[365039186,1749420648431,-1000.0,0.00021421,2]
[365039189,1749420648442,-1000.0,0.00021421,2]
[365039191,1749420648455,-1000.0,0.00021421,2]
[365039193,1749420648464,-4145.0600695,0.00021452,5]
[365039195,1749420648474,-153.102215,0.00021452,2]
[365039197,1749420648484,-151.0,0.00021452,2]
[365039199,1749420648497,-151.0,0.00021452,2]
[365039201,1749420648508,-151.0,0.00021452,2]
[365039203,1749420648519,-2429.661368,0.00021452,2]
[365039205,1749420648530,-2429.661368,0.00021452,2]
[365039207,1749420648541,-151.0,0.000215,3]
[365039209,1749420648552,-151.0,0.000216,3]
[365039211,1749420648562,-4145.0600695,0.00021624,5]
[365039213,1749420648572,-151.0,0.00021643,2]
[365039215,1749420648582,-151.0,0.00021643,2]
[365039217,1749420648592,-151.0,0.00021643,2]
[365039219,1749420648602,-440.0,0.00021643,2]
[365039221,1749420648612,-151.0,0.00021643,2]
[365039223,1749420648621,-151.0,0.00021643,2]
[365039225,1749420648632,-151.0,0.00021643,2]
[365039227,1749420648642,-440.0,0.00021643,2]
[365039229,1749420648653,-1467.97,0.00021643,2]
[365039231,1749420648664,-1143.64,0.00021643,2]
[365039234,1749420648674,-440.0,0.00021643,2]
[365039235,1749420648684,-151.0,0.00021643,2]
[365039238,1749420648694,-440.0,0.00021643,2]
[365039239,1749420648704,-440.0,0.00021643,2]
[365039241,1749420648714,-440.0,0.00021643,2]
[365039243,1749420648724,-440.0,0.00021643,2]
[365039246,1749420648734,-1415.17,0.00021643,2]
[365039248,1749420648746,-440.0,0.00021643,2]
[365039249,1749420648755,-151.0,0.00021643,2]
[365039251,1749420648766,-440.0,0.00021643,2]
[365039253,1749420648776,-151.0,0.00021643,2]
[365039255,1749420648786,-485.45,0.00021643,2]
[365039258,1749420648797,-440.0,0.00021643,2]
[365039260,1749420648806,-151.000001,0.00021643,2]
[365039262,1749420648816,-2568.46,0.00021643,2]
[365039264,1749420648826,-1143.02,0.00021643,2]
[365039265,1749420648835,-440.0,0.00021643,2]
[365039266,1749420648845,-1508.21,0.00021643,2]
[365039267,1749420648856,-440.0,0.00021643,2]
[365039268,1749420648866,-440.0,0.00021643,2]
[365039269,1749420648876,-440.0,0.00021643,2]
[365039270,1749420648886,-381.183681,0.00021643,2]
[365039271,1749420648896,-381.183681,0.00021643,2]
[365039272,1749420648907,-502.97,0.00021643,2]
[365039273,1749420648916,-1346.99,0.00021643,2]
[365039274,1749420648926,-440.0,0.00021643,2]
[365039275,1749420648937,-440.0,0.00021643,2]
[365039276,1749420648947,-1720.85,0.00021643,2]
[365039277,1749420648958,-2696.79,0.00021643,2]
[365039278,1749420648968,-1719.84,0.00021643,2]
[365039279,1749420648979,-440.0,0.00021643,2]
[365039280,1749420648991,-440.0,0.00021643,2]
[365039281,1749420649001,-440.0,0.00021643,2]
[365039282,1749420649012,-2364.37,0.00021643,2]
[365039283,1749420649022,-562.52,0.00021643,2]
[365039284,1749420649032,-1138.16,0.00021643,2]
[365039285,1749420649042,-2603.17,0.00021643,2]
[365039286,1749420649052,-2952.52,0.00021643,2]
[365039287,1749420649063,-440.0,0.00021643,2]
[365039288,1749420649073,-769.0,0.00021643,2]
[365039289,1749420649084,-440.0,0.00021643,2]
[365039290,1749420649094,-500.0,0.00021695,2]
[365039291,1749420649105,-1000.0,0.00021795,2]
[365039292,1749420649115,-4145.0600695,0.00021797,6]
[365039293,1749420649125,-151.0,0.000218,4]
[365039294,1749420649135,-1000.0,0.00021836,2]
[365039295,1749420649145,-1000.0,0.00021836,2]
[365039296,1749420649155,-1200.0,0.00021861,2]
[365039297,1749420649165,-151.0,0.00021863,2]
[365039298,1749420649175,-151.0,0.00021863,2]
[365039299,1749420649185,-151.0,0.00021863,2]
[365039300,1749420649195,-158.1839445,0.00021863,2]
[365039301,1749420649205,-573.126752,0.00021863,2]
[365039302,1749420649216,-573.126752,0.00021863,2]
[365039303,1749420649226,-1194.0478727,0.00021863,2]
[365039304,1749420649236,-152.51297585,0.00021898,2]
[365039305,1749420649246,-5000.0,0.00021898,2]
[365039306,1749420649256,-150.0,0.000219,2]
[365039307,1749420649265,-1639.36,0.000219,2]
[365039308,1749420649275,-500.0,0.00021917,2]
[365039309,1749420649285,-440.0,0.00021917,2]
[365039310,1749420649295,-440.0,0.00021917,2]
[365039311,1749420649305,-1467.97,0.00021917,2]
[365039312,1749420649315,-1143.64,0.00021917,2]
[365039313,1749420649325,-440.0,0.00021917,2]
[365039314,1749420649335,-440.0,0.00021917,2]
[365039315,1749420649344,-440.0,0.00021917,2]
[365039316,1749420649354,-440.0,0.00021917,2]
[365039317,1749420649365,-330.0,0.00021917,2]
[365039318,1749420649374,-1415.17,0.00021917,2]
[365039319,1749420649384,-440.0,0.00021917,2]
[365039320,1749420649394,-440.0,0.00021917,2]
[365039321,1749420649405,-485.45,0.00021917,2]
[365039322,1749420649415,-440.0,0.00021917,2]
[365039323,1749420649425,-2568.46,0.00021917,2]
[365039324,1749420649436,-1143.02,0.00021917,2]
[365039325,1749420649448,-440.0,0.00021917,2]
[365039326,1749420649458,-1508.21,0.00021917,2]
[365039327,1749420649467,-440.0,0.00021917,2]
[365039328,1749420649479,-330.0,0.00021917,2]
[365039329,1749420649489,-500.0,0.00021917,2]
[365039330,1749420649499,-500.0,0.00021917,2]
[365039331,1749420649509,-330.0,0.00021917,2]
[365039332,1749420649518,-500.0,0.00021917,2]
[365039333,1749420649529,-500.0,0.00021917,2]
[365039334,1749420649539,-500.0,0.00021917,2]
[365039335,1749420649548,-500.0,0.00021917,2]
[365039336,1749420649559,-500.0,0.00021917,2]
[365039337,1749420649568,-500.0,0.00021917,2]
[365039338,1749420649577,-500.0,0.00021917,2]
[365039339,1749420649588,-500.0,0.00021917,2]
[365039340,1749420649597,-189.08469066,0.00021917,2]
[365039341,1749420649607,-502.97,0.00021917,2]
[365039342,1749420649616,-1346.99,0.00021917,2]
[365039343,1749420649626,-216.22,0.00021917,2]
[365039344,1749420649635,-440.0,0.00021917,2]
[365039345,1749420649645,-1720.85,0.00021917,2]
[365039346,1749420649655,-2696.79,0.00021917,2]
[365039347,1749420649664,-1719.84,0.00021917,2]
[365039348,1749420649674,-440.0,0.00021917,2]
[365039349,1749420649683,-440.0,0.00021917,2]
[365039350,1749420649694,-440.0,0.00021917,2]
[365039351,1749420649703,-2364.37,0.00021917,2]
[365039352,1749420649713,-562.52,0.00021917,2]
[365039353,1749420649722,-1138.16,0.00021917,2]
[365039354,1749420649733,-2603.17,0.00021917,2]
[365039355,1749420649743,-2952.52,0.00021917,2]
[365039356,1749420649753,-440.0,0.00021917,2]
[365039357,1749420649763,-769.0,0.00021917,2]
[365039358,1749420649772,-440.0,0.00021917,2]
[365039359,1749420649782,-151.0,0.00021918,2]
[365039360,1749420649792,-151.0,0.00021918,2]
[365039361,1749420649802,-171.0,0.00021918,2]
[365039362,1749420649813,-151.0,0.00021918,2]
[365039363,1749420649823,-171.0,0.00021918,2]
[365039364,1749420649934,-151.0,0.00021918,2]
[365039365,1749420649944,-171.0,0.00021918,2]
[365039366,1749420649954,-151.0,0.00021918,2]
[365039367,1749420649963,-171.0,0.00021918,2]
[365039368,1749420649973,-151.0,0.00021918,2]
[365039369,1749420649984,-171.0,0.00021918,2]
[365039370,1749420649994,-151.0,0.00021918,2]
[365039371,1749420650004,-171.75211901,0.00021918,2]
[365039372,1749420650014,-151.0,0.00021918,2]
[365039373,1749420650023,-151.0,0.00021918,2]
[365039374,1749420650033,-151.0,0.00021918,2]
[365039375,1749420650043,-151.0,0.00021918,2]
[365039376,1749420650053,-151.0,0.00021918,2]
[365039377,1749420650063,-151.0,0.00021918,2]
[365039378,1749420650073,-151.0,0.00021918,2]
[365039379,1749420650083,-151.0,0.00021918,2]
[365039380,1749420650092,-151.0,0.00021918,2]
[365039381,1749420650102,-151.0,0.00021918,2]
[365039382,1749420650112,-151.0,0.00021918,2]
[365039383,1749420650121,-151.0,0.00021918,2]
[365039384,1749420650130,-151.0,0.00021918,2]
[365039385,1749420650140,-151.0,0.00021918,2]
[365039386,1749420650151,-151.0,0.00021918,2]
[365039387,1749420650161,-151.0,0.00021918,2]
[365039388,1749420650170,-151.0,0.00021918,2]
[365039389,1749420650180,-151.0,0.00021918,2]
[365039390,1749420650190,-151.0,0.00021918,2]
[365039391,1749420650200,-151.0,0.00021918,2]
[365039392,1749420650210,-151.0,0.00021918,2]
[365039393,1749420650220,-151.0,0.00021918,2]
[365039394,1749420650230,-151.0,0.00021918,2]
[365039395,1749420650241,-151.0,0.00021918,2]
[365039396,1749420650250,-151.0,0.00021918,2]
[365039397,1749420650260,-151.0,0.00021918,2]
[365039398,1749420650270,-151.0,0.00021918,2]
[365039399,1749420650280,-151.0,0.00021918,2]
[365039400,1749420650290,-151.0,0.00021918,2]
[365039401,1749420650300,-151.0,0.00021918,2]
[365039402,1749420650310,-151.0,0.00021918,2]
[365039403,1749420650320,-151.0,0.00021918,2]
[365039404,1749420650330,-151.0,0.00021918,2]
[365039405,1749420650340,-151.0,0.00021918,2]
[365039406,1749420650350,-151.0,0.00021918,2]
[365039407,1749420650360,-151.0,0.00021918,2]
[365039408,1749420650370,-151.0,0.00021918,2]
[365039409,1749420650380,-151.0,0.00021918,2]
[365039410,1749420650390,-151.0,0.00021918,2]
[365039411,1749420650400,-151.0,0.00021918,2]
[365039412,1749420650410,-151.0,0.00021918,2]
[365039413,1749420650421,-151.0,0.00021918,2]
[365039414,1749420650430,-151.0,0.00021918,2]
[365039415,1749420650441,-151.0,0.00021918,2]
[365039416,1749420650454,-151.0,0.00021918,2]
[365039417,1749420650464,-151.0,0.00021918,2]
[365039418,1749420650473,-228.40713592,0.00021918,2]
[365039419,1749420650483,-151.0,0.00021918,2]
[365039420,1749420650494,-151.0,0.00021918,2]
[365039421,1749420650504,-151.0,0.00021918,2]
[365039422,1749420650514,-151.0,0.00021918,2]
[365039423,1749420650525,-161.0,0.00021918,2]
[365039424,1749420650535,-1000.0,0.00021921,2]
[365039425,1749420650544,-151.0,0.00021921,7]
[365039426,1749420650555,-232.621298,0.00021921,7]
[365039427,1749420650564,-151.0,0.00021921,7]
[365039428,1749420650574,-1800.0,0.00021968,2]
[365039429,1749420650584,-1025.52033247,0.00021968,2]
[365039430,1749420650594,-501.49859335,0.00021968,2]
[365039431,1749420650603,-1500.0,0.00021968,2]
[365039432,1749420650614,-1500.0,0.00021968,2]
[365039433,1749420650624,-1500.0,0.00021968,2]
[365039434,1749420650634,-1500.0,0.00021968,2]
[365039435,1749420650645,-4145.0600695,0.00021969,6]
[365039436,1749420650655,-151.0,0.00021969,7]
[365039437,1749420650664,-151.0,0.00021969,7]
[365039438,1749420650673,-151.0,0.00021969,7]
[365039439,1749420650683,-2429.661368,0.00021969,2]
[365039440,1749420650694,-2429.661368,0.00021969,2]
[365039441,1749420650703,-151.0,0.00021969,7]
[365039442,1749420650713,-634.864202,0.00021969,7]
[365039443,1749420650723,-634.864202,0.00021969,7]
[365039444,1749420650732,-200.48904439,0.00021999,2]
[365039445,1749420650742,-71436.77,0.00022,7]
[365039446,1749420650751,-151.0,0.00022,7]
[365039447,1749420650761,-151.0,0.00022,7]
[365039448,1749420650771,-151.0,0.00022,7]
[365039449,1749420650780,-151.0,0.00022,7]
[365039450,1749420650790,-151.0,0.00022,7]
[365039451,1749420650800,-151.0,0.00022,7]
[365039452,1749420650810,-151.0,0.00022,7]
[365039453,1749420650820,-151.0,0.00022,7]
[365039454,1749420650830,-154.989312,0.00022,7]
[365039455,1749420650840,-381.183681,0.00022,7]
[365039456,1749420650850,-381.183681,0.00022,7]
[365039457,1749420650861,-150.0,0.00022,2]
[365039458,1749420650870,-160.0,0.00022016,3]
[365039459,1749420650880,-401.64,0.000221,7]
[365039460,1749420650890,-151.0,0.000221,10]
[365039461,1749420650899,-151.0,0.00022141,7]
[365039462,1749420650910,-4145.0600695,0.00022141,6]
[365039463,1749420650919,-151.0,0.00022191,7]
[365039464,1749420650928,-151.0,0.00022191,7]
[365039465,1749420650938,-151.0,0.00022191,7]
[365039466,1749420650948,-320.0,0.00022191,4]
[365039467,1749420650959,-440.0,0.00022191,4]
[365039468,1749420650969,-1467.97,0.00022191,4]
[365039469,1749420650979,-1143.64,0.00022191,4]
[365039470,1749420650990,-440.0,0.00022191,4]
[365039471,1749420651000,-440.0,0.00022191,4]
[365039472,1749420651009,-440.0,0.00022191,4]
[365039473,1749420651019,-440.0,0.00022191,4]
[365039474,1749420651029,-1415.17,0.00022191,4]
[365039475,1749420651038,-440.0,0.00022191,4]
[365039476,1749420651048,-440.0,0.00022191,4]
[365039477,1749420651057,-485.45,0.00022191,4]
[365039478,1749420651067,-440.0,0.00022191,4]
[365039479,1749420651077,-2568.46,0.00022191,4]
[365039480,1749420651087,-1143.02,0.00022191,4]
[365039481,1749420651096,-440.0,0.00022191,4]
[365039482,1749420651107,-1508.21,0.00022191,4]
[365039483,1749420651117,-325.46667176,0.00022191,4]
[365039484,1749420651126,-502.97,0.00022191,4]
[365039485,1749420651135,-1346.99,0.00022191,4]
[365039486,1749420651145,-440.0,0.00022191,4]
[365039487,1749420651155,-1720.85,0.00022191,4]
[365039488,1749420651166,-2696.79,0.00022191,4]
[365039489,1749420651175,-1719.84,0.00022191,4]
[365039490,1749420651185,-440.0,0.00022191,4]
[365039491,1749420651195,-440.0,0.00022191,4]
[365039492,1749420651205,-440.0,0.00022191,4]
[365039493,1749420651214,-2364.37,0.00022191,4]
[365039494,1749420651224,-562.52,0.00022191,4]
[365039495,1749420651234,-1138.16,0.00022191,4]
[365039496,1749420651244,-2603.17,0.00022191,4]
[365039497,1749420651255,-2952.52,0.00022191,4]
[365039498,1749420651264,-440.0,0.00022191,4]
[365039499,1749420651274,-769.0,0.00022191,4]
[365039500,1749420651284,-440.0,0.00022191,4]
[365039501,1749420651293,-151.0,0.00022208,7]
[365039502,1749420651303,-275.722512,0.00022208,7]
[365039503,1749420651313,-1744.08,0.00022216,2]
[365039504,1749420651323,-1000.0,0.00022243,2]
[365039505,1749420651332,-41533.0,0.000223,2]
[365039506,1749420651342,-151.0,0.000223,7]
[365039507,1749420651352,-151.0,0.000223,7]
[365039508,1749420651362,-151.0,0.000223,7]
[365039509,1749420651371,-2429.661368,0.000223,2]
[365039510,1749420651381,-2429.661368,0.000223,2]
[365039511,1749420651391,-151.0,0.000223,7]
[365039512,1749420651401,-634.864202,0.000223,7]
[365039513,1749420651410,-634.864202,0.000223,7]
[365039514,1749420651421,-4145.0600695,0.00022314,7]
[365039515,1749420651431,-1500.0,0.00022343,2]
[365039516,1749420651441,-1500.0,0.00022384,2]
[365039517,1749420651454,-206.53827738,0.00022399,2]
[365039518,1749420651464,-151.0,0.000224,7]
[365039519,1749420651474,-195.707151,0.000224,7]
[365039520,1749420651485,-48102.66,0.000224,2]
[365039521,1749420651495,-151.0,0.000224,7]
[365039522,1749420651505,-151.0,0.000224,7]
[365039523,1749420651515,-151.0,0.000224,7]
[365039524,1749420651525,-151.0,0.000224,7]
[365039525,1749420651535,-151.0,0.000224,7]
[365039526,1749420651545,-151.0,0.000224,7]
[365039527,1749420651555,-151.0,0.000224,7]
[365039528,1749420651565,-381.183681,0.000224,7]
[365039529,1749420651575,-381.183681,0.000224,7]
[365039530,1749420651584,-5000.0,0.00022446,2]
[365039531,1749420651594,-496.4,0.00022465,2]
[365039532,1749420651604,-496.4,0.00022465,2]
[365039533,1749420651614,-496.4,0.00022465,2]
[365039534,1749420651624,-496.4,0.00022465,2]
[365039535,1749420651634,-496.4,0.00022465,2]
[365039536,1749420651643,-496.4,0.00022465,2]
[365039537,1749420651653,-496.4,0.00022465,2]
[365039538,1749420651663,-496.4,0.00022465,2]
[365039539,1749420651672,-496.4,0.00022465,2]
[365039540,1749420651684,-496.4,0.00022465,2]
[365039541,1749420651693,-496.4,0.00022465,2]
[365039542,1749420651703,-496.4,0.00022465,2]
[365039543,1749420651713,-496.4,0.00022465,2]
[365039544,1749420651722,-500.0,0.00022465,2]
[365039545,1749420651732,-440.0,0.00022465,4]
[365039546,1749420651743,-1467.97,0.00022465,4]
[365039547,1749420651753,-440.0,0.00022465,4]
[365039548,1749420651762,-1143.64,0.00022465,4]
[365039549,1749420651772,-440.0,0.00022465,4]
[365039550,1749420651782,-440.0,0.00022465,4]
[365039551,1749420651792,-440.0,0.00022465,4]
[365039552,1749420651802,-1415.17,0.00022465,4]
[365039553,1749420651811,-440.0,0.00022465,4]
[365039554,1749420651821,-440.0,0.00022465,4]
[365039555,1749420651831,-485.45,0.00022465,4]
[365039556,1749420651841,-440.0,0.00022465,4]
[365039557,1749420651850,-2568.46,0.00022465,4]
[365039558,1749420651860,-1143.02,0.00022465,4]
[365039559,1749420651870,-440.0,0.00022465,4]
[365039560,1749420651879,-1508.21,0.00022465,4]
[365039561,1749420651890,-502.97,0.00022465,4]
[365039562,1749420651900,-1346.99,0.00022465,4]
[365039563,1749420651910,-440.0,0.00022465,4]
[365039564,1749420651920,-1720.85,0.00022465,4]
[365039565,1749420651930,-2696.79,0.00022465,4]
[365039566,1749420652056,-1719.84,0.00022465,4]
[365039567,1749420652067,-440.0,0.00022465,4]
[365039568,1749420652077,-440.0,0.00022465,4]
[365039569,1749420652086,-151.0,0.00022465,7]
[365039570,1749420652096,-440.0,0.00022465,4]
[365039571,1749420652105,-2364.37,0.00022465,4]
[365039572,1749420652116,-562.52,0.00022465,4]
[365039573,1749420652126,-1138.16,0.00022465,4]
[365039574,1749420652136,-2603.17,0.00022465,4]
[365039575,1749420652146,-2952.52,0.00022465,4]
[365039576,1749420652155,-440.0,0.00022465,4]
[365039577,1749420652165,-769.0,0.00022465,4]
[365039578,1749420652175,-440.0,0.00022465,4]
[365039579,1749420652186,-244.04240784,0.00022468,2]
[365039580,1749420652195,-4145.0600695,0.00022486,7]
[365039581,1749420652206,-2400.0,0.00022516,2]
[365039582,1749420652216,-2000.0,0.00022516,2]
[365039583,1749420652225,-1991.71526404,0.00022516,2]
[365039584,1749420652235,-500.0,0.00022516,2]
[365039585,1749420652245,-2000.0,0.00022516,2]
[365039586,1749420652256,-5000.0,0.00022575,2]
[365039587,1749420652265,-151.0,0.00022575,7]
[365039588,1749420652275,-151.0,0.00022575,7]
[365039589,1749420652285,-4145.0600695,0.00022659,7]
[365039590,1749420652295,-215.0738,0.00022719,2]
[365039591,1749420652305,-151.0,0.00022739,7]
[365039592,1749420652316,-151.0,0.00022739,7]
[365039593,1749420652326,-151.0,0.00022739,7]
[365039594,1749420652335,-496.4,0.00022739,2]
[365039595,1749420652345,-440.0,0.00022739,4]
[365039596,1749420652355,-1467.97,0.00022739,4]
[365039597,1749420652365,-440.0,0.00022739,4]
[365039598,1749420652375,-151.0,0.00022739,7]
[365039599,1749420652386,-1143.64,0.00022739,4]